Department family,Entity,Date,Expense type,Expense area,Supplier,Transaction number,Amount
Department of Health,Leicestershire Partnership NHS Trust,02/03/20,Computer Software,Finance Department,VERSION 1,INVSOL005269,35825.70
Department of Health,Leicestershire Partnership NHS Trust,03/03/20,GP IT Expenditure,Area Team,DELL COMPUTERS,7402598570,51434.69
Department of Health,Leicestershire Partnership NHS Trust,03/03/20,GP IT Expenditure,Area Team,DELL COMPUTERS,7402598572,25717.34
Department of Health,Leicestershire Partnership NHS Trust,03/03/20,WIP Project Not in BS - Information Technology,Work in Progress,DELL COMPUTERS,7402597815,27960.00
Department of Health,Leicestershire Partnership NHS Trust,03/03/20,WIP Project Not in BS - Information Technology,Work in Progress,DELL COMPUTERS,7402598384,25717.34
Department of Health,Leicestershire Partnership NHS Trust,03/03/20,Rent,Bridge Park Plaza - First Floor (LPT),RAYNSWAY PROPERTIES LTD,INV-1426,80507.52
Department of Health,Leicestershire Partnership NHS Trust,03/03/20,Unitary Payment,"The Agnes Unit (AKA Assessment and Treatment Centre) (P85, LPT)",ARDEN PARTNERSHIP (LEICESTER),SI0042,108763.74
Department of Health,Leicestershire Partnership NHS Trust,04/03/20,NURSE - BAND 2 - AGENCY,Acacia (Willows),HCL NURSING,HNSI0000301,262.44
Department of Health,Leicestershire Partnership NHS Trust,04/03/20,Nurse - Band 6 -Agency,Adult City East CMHT - Merlyn Vaz,HCL NURSING,HNSI0000301,2765.99
Department of Health,Leicestershire Partnership NHS Trust,04/03/20,Nurse - Band 6 -Agency,Adult County Charnwood CMHT - Loughborough Base,HCL NURSING,HNSI0000301,2139.75
Department of Health,Leicestershire Partnership NHS Trust,04/03/20,Nurse - Band 6 -Agency,Adult County North West Leicestershire CMHT,HCL NURSING,HNSI0000301,1604.17
Department of Health,Leicestershire Partnership NHS Trust,04/03/20,Nurse - Band 6 -Agency,Adult County West Leicestershire CMHT,HCL NURSING,HNSI0000301,1069.88
Department of Health,Leicestershire Partnership NHS Trust,04/03/20,NURSE - BAND 2 - AGENCY,Agnes Unit Management,HCL NURSING,HNSI0000301,1397.67
Department of Health,Leicestershire Partnership NHS Trust,04/03/20,NURSE - BAND 5 - AGENCY,Agnes Unit Management,HCL NURSING,HNSI0000301,922.38
Department of Health,Leicestershire Partnership NHS Trust,04/03/20,NURSE - BAND 2 - AGENCY,Ashby Ward (Bradgate Unit),HCL NURSING,HNSI0000301,274.19
Department of Health,Leicestershire Partnership NHS Trust,04/03/20,NURSE - BAND 5 - AGENCY,Ashby Ward (Bradgate Unit),HCL NURSING,HNSI0000301,329.81
Department of Health,Leicestershire Partnership NHS Trust,04/03/20,Nurse - Band 6 -Agency,Assertive Outreach Services,HCL NURSING,HNSI0000301,1069.88
Department of Health,Leicestershire Partnership NHS Trust,04/03/20,NURSE - BAND 2 - AGENCY,Aston Ward (Bradgate Unit),HCL NURSING,HNSI0000301,474.42
Department of Health,Leicestershire Partnership NHS Trust,04/03/20,NURSE - BAND 5 - AGENCY,Aston Ward (Bradgate Unit),HCL NURSING,HNSI0000301,329.81
Department of Health,Leicestershire Partnership NHS Trust,04/03/20,NURSE - BAND 5 - AGENCY,Beaumont Ward - Bradgate Unit,HCL NURSING,HNSI0000301,329.81
Department of Health,Leicestershire Partnership NHS Trust,04/03/20,NURSE - BAND 2 - AGENCY,Belvoir Psychiatric Intensive Care Unit,HCL NURSING,HNSI0000301,4708.29
Department of Health,Leicestershire Partnership NHS Trust,04/03/20,NURSE - BAND 5 - AGENCY,Belvoir Psychiatric Intensive Care Unit,HCL NURSING,HNSI0000301,2461.92
Department of Health,Leicestershire Partnership NHS Trust,04/03/20,NURSE - BAND 2 - AGENCY,Bosworth Ward - Bradgate Unit,HCL NURSING,HNSI0000301,506.92
Department of Health,Leicestershire Partnership NHS Trust,04/03/20,NURSE - BAND 5 - AGENCY,Bosworth Ward - Bradgate Unit,HCL NURSING,HNSI0000301,700.19
Department of Health,Leicestershire Partnership NHS Trust,04/03/20,NURSE - BAND 2 - AGENCY,Cedar (Willows),HCL NURSING,HNSI0000301,173.32
Department of Health,Leicestershire Partnership NHS Trust,04/03/20,Nurse - Band 6 -Agency,Crisis Resolution,HCL NURSING,HNSI0000301,4455.73
Department of Health,Leicestershire Partnership NHS Trust,04/03/20,NURSE - BAND 2 - AGENCY,Griffin Ward (HPC),HCL NURSING,HNSI0000301,826.79
Department of Health,Leicestershire Partnership NHS Trust,04/03/20,NURSE - BAND 5 - AGENCY,Griffin Ward (HPC),HCL NURSING,HNSI0000301,3143.31
Department of Health,Leicestershire Partnership NHS Trust,04/03/20,NURSE - BAND 2 - AGENCY,Heather Ward,HCL NURSING,HNSI0000301,336.82
Department of Health,Leicestershire Partnership NHS Trust,04/03/20,NURSE - BAND 5 - AGENCY,Heather Ward,HCL NURSING,HNSI0000301,1573.19
Department of Health,Leicestershire Partnership NHS Trust,04/03/20,NURSE - BAND 2 - AGENCY,Maple Ward,HCL NURSING,HNSI0000301,187.49
Department of Health,Leicestershire Partnership NHS Trust,04/03/20,Nurse - Band 6 -Agency,Mental Health Triage Team,HCL NURSING,HNSI0000301,3174.31
Department of Health,Leicestershire Partnership NHS Trust,04/03/20,NURSE - BAND 2 - AGENCY,Mill Lodge,HCL NURSING,HNSI0000301,469.90
Department of Health,Leicestershire Partnership NHS Trust,04/03/20,NURSE - BAND 2 - AGENCY,Sycamore (Willows),HCL NURSING,HNSI0000301,277.94
Department of Health,Leicestershire Partnership NHS Trust,04/03/20,NURSE - BAND 2 - AGENCY,Thornton Ward - Bradgate Unit,HCL NURSING,HNSI0000301,144.78
Department of Health,Leicestershire Partnership NHS Trust,04/03/20,NURSE - BAND 5 - AGENCY,Thornton Ward - Bradgate Unit,HCL NURSING,HNSI0000301,266.74
Department of Health,Leicestershire Partnership NHS Trust,04/03/20,NURSE - BAND 2 - AGENCY,Watermead Ward (Bradgate Unit),HCL NURSING,HNSI0000301,991.27
Department of Health,Leicestershire Partnership NHS Trust,04/03/20,NURSE - BAND 5 - AGENCY,Watermead Ward (Bradgate Unit),HCL NURSING,HNSI0000301,1390.71
Department of Health,Leicestershire Partnership NHS Trust,04/03/20,WIP Project Not in BS - Information Technology,Work in Progress,DELL COMPUTERS,7402598045,46497.00
Department of Health,Leicestershire Partnership NHS Trust,04/03/20,WIP Project Not in BS - Information Technology,Work in Progress,DELL COMPUTERS,7402598044,46497.00
Department of Health,Leicestershire Partnership NHS Trust,04/03/20,WIP Project Not in BS - Information Technology,Work in Progress,DELL COMPUTERS,7402597784,27898.20
Department of Health,Leicestershire Partnership NHS Trust,05/03/20,Other Non-Medical Supplies & Services,Inter Unit I & E Distribution,UHL NHS TRUST (RWE),L0239688,176301.00
Department of Health,Leicestershire Partnership NHS Trust,05/03/20,Occupational Health,HR Operations,UHL NHS TRUST (RWE),L0239685,26622.00
Department of Health,Leicestershire Partnership NHS Trust,05/03/20,Rent,"OSL House (P54, LPT)",CABOT TRUSTEES LTD,059,41700.00
Department of Health,Leicestershire Partnership NHS Trust,05/03/20,External Data Processing / Storage,Records & information Governance,H COATES LTD/TA C&V DATA,4000564,28508.92
Department of Health,Leicestershire Partnership NHS Trust,05/03/20,HR / Payroll Services,HR Employment Services,LINCOLNSHIRE PART NHSFT(RP7),2000020505,29360.93
Department of Health,Leicestershire Partnership NHS Trust,06/03/20,WIP Project Not in BS - Information Technology,Work in Progress,VODAFONE CORPORATE LTD,NS14025,254163.06
Department of Health,Leicestershire Partnership NHS Trust,06/03/20,WIP Project Not in BS - Information Technology,Work in Progress,DELL COMPUTERS,7402598272,46497.00
Department of Health,Leicestershire Partnership NHS Trust,06/03/20,WIP Project Not in BS - Information Technology,Work in Progress,DELL COMPUTERS,7402598271,46497.00
Department of Health,Leicestershire Partnership NHS Trust,06/03/20,WIP Project Not in BS - Information Technology,Work in Progress,DELL COMPUTERS,7402597925,46497.00
Department of Health,Leicestershire Partnership NHS Trust,06/03/20,Computer Hardware,HIS External Recharge,DELL COMPUTERS,7402597917,46980.00
Department of Health,Leicestershire Partnership NHS Trust,06/03/20,Computer Hardware,HIS External Recharge,DELL COMPUTERS,7402597918,46980.00
Department of Health,Leicestershire Partnership NHS Trust,06/03/20,WIP Project Not in BS - Information Technology,Work in Progress,DELL COMPUTERS,7402597780,46497.00
Department of Health,Leicestershire Partnership NHS Trust,06/03/20,WIP Project Not in BS - Information Technology,Work in Progress,DELL COMPUTERS,7402597781,46497.00
Department of Health,Leicestershire Partnership NHS Trust,06/03/20,WIP Project Not in BS - Information Technology,Work in Progress,DELL COMPUTERS,7402597782,46497.00
Department of Health,Leicestershire Partnership NHS Trust,06/03/20,Pathology Service,Children Services Medical,UHL NHS TRUST (RWE),L0236865,14006.08
Department of Health,Leicestershire Partnership NHS Trust,06/03/20,Pathology Service,Inpatient Ward Management,UHL NHS TRUST (RWE),L0236865,5025.83
Department of Health,Leicestershire Partnership NHS Trust,06/03/20,Pathology Service,UHL Expenditure Contract,UHL NHS TRUST (RWE),L0236865,12924.16
Department of Health,Leicestershire Partnership NHS Trust,06/03/20,Med Trainees - FY1,Medical Trainees,UHL NHS TRUST (RWE),L0239748,29140.00
Department of Health,Leicestershire Partnership NHS Trust,06/03/20,Healthcare Services / Recharges from Non-NHS Bodies,CAMHS Waiting List Monies,HEALIOS LTD,1436,47520.00
Department of Health,Leicestershire Partnership NHS Trust,09/03/20,Payroll Deductions -Salary Sacrifice Cars Scheme,Balance Sheet Collection,TUSKER,27508,28236.97
Department of Health,Leicestershire Partnership NHS Trust,09/03/20,Crs_NHS_LT1y -Resus Inventory Supplied.,Balance Sheet Collection,SUPPLY CHAIN CO LTD,1010243132,31780.45
Department of Health,Leicestershire Partnership NHS Trust,10/03/20,WIP Project Not in BS - Buildings excl Dwellings,Work in Progress,INTERSERVE CONSTRUCTION LTD,VEM55229,38972.98
Department of Health,Leicestershire Partnership NHS Trust,10/03/20,WIP Project Not in BS - Buildings excl Dwellings,Work in Progress,INTERSERVE CONSTRUCTION LTD,VEM55241,118735.19
Department of Health,Leicestershire Partnership NHS Trust,10/03/20,WIP Project Not in BS - Buildings excl Dwellings,Work in Progress,INTERSERVE CONSTRUCTION LTD,VEM55245,84430.14
Department of Health,Leicestershire Partnership NHS Trust,10/03/20,WIP Project Not in BS - Buildings excl Dwellings,Work in Progress,INTERSERVE CONSTRUCTION LTD,VEM55240,40757.54
Department of Health,Leicestershire Partnership NHS Trust,10/03/20,WIP Project Not in BS - Buildings excl Dwellings,Work in Progress,INTERSERVE CONSTRUCTION LTD,VEM55239,157201.44
Department of Health,Leicestershire Partnership NHS Trust,10/03/20,Nurse - Band 6 -Agency,Adult City East CMHT - Merlyn Vaz,HCL NURSING,HNSI0000309,5310.91
Department of Health,Leicestershire Partnership NHS Trust,10/03/20,Nurse - Band 6 -Agency,Adult County Charnwood CMHT - Loughborough Base,HCL NURSING,HNSI0000309,1069.88
Department of Health,Leicestershire Partnership NHS Trust,10/03/20,Nurse - Band 6 -Agency,Adult County North West Leicestershire CMHT,HCL NURSING,HNSI0000309,1118.40
Department of Health,Leicestershire Partnership NHS Trust,10/03/20,Nurse - Band 6 -Agency,Adult County West Leicestershire CMHT,HCL NURSING,HNSI0000309,1069.88
Department of Health,Leicestershire Partnership NHS Trust,10/03/20,NURSE - BAND 2 - AGENCY,Agnes Unit Management,HCL NURSING,HNSI0000309,1635.67
Department of Health,Leicestershire Partnership NHS Trust,10/03/20,NURSE - BAND 5 - AGENCY,Agnes Unit Management,HCL NURSING,HNSI0000309,308.20
Department of Health,Leicestershire Partnership NHS Trust,10/03/20,NURSE - BAND 2 - AGENCY,Ashby Ward (Bradgate Unit),HCL NURSING,HNSI0000309,418.03
Department of Health,Leicestershire Partnership NHS Trust,10/03/20,NURSE - BAND 5 - AGENCY,Ashby Ward (Bradgate Unit),HCL NURSING,HNSI0000309,722.70
Department of Health,Leicestershire Partnership NHS Trust,10/03/20,NURSE - BAND 2 - AGENCY,Aston Ward (Bradgate Unit),HCL NURSING,HNSI0000309,631.34
Department of Health,Leicestershire Partnership NHS Trust,10/03/20,NURSE - BAND 5 - AGENCY,Aston Ward (Bradgate Unit),HCL NURSING,HNSI0000309,700.19
Department of Health,Leicestershire Partnership NHS Trust,10/03/20,NURSE - BAND 5 - AGENCY,Beaumont Ward - Bradgate Unit,HCL NURSING,HNSI0000309,370.38
Department of Health,Leicestershire Partnership NHS Trust,10/03/20,NURSE - BAND 2 - AGENCY,Belvoir Psychiatric Intensive Care Unit,HCL NURSING,HNSI0000309,2382.00
Department of Health,Leicestershire Partnership NHS Trust,10/03/20,NURSE - BAND 5 - AGENCY,Belvoir Psychiatric Intensive Care Unit,HCL NURSING,HNSI0000309,1392.47
Department of Health,Leicestershire Partnership NHS Trust,10/03/20,NURSE - BAND 2 - AGENCY,Bosworth Ward - Bradgate Unit,HCL NURSING,HNSI0000309,223.60
Department of Health,Leicestershire Partnership NHS Trust,10/03/20,NURSE - BAND 5 - AGENCY,Bosworth Ward - Bradgate Unit,HCL NURSING,HNSI0000309,339.96
Department of Health,Leicestershire Partnership NHS Trust,10/03/20,NURSE - BAND 2 - AGENCY,Cedar (Willows),HCL NURSING,HNSI0000309,309.63
Department of Health,Leicestershire Partnership NHS Trust,10/03/20,Nurse - Band 6 -Agency,Crisis Resolution,HCL NURSING,HNSI0000309,3916.15
Department of Health,Leicestershire Partnership NHS Trust,10/03/20,NURSE - BAND 2 - AGENCY,Griffin Ward (HPC),HCL NURSING,HNSI0000309,113.85
Department of Health,Leicestershire Partnership NHS Trust,10/03/20,NURSE - BAND 5 - AGENCY,Griffin Ward (HPC),HCL NURSING,HNSI0000309,2826.50
Department of Health,Leicestershire Partnership NHS Trust,10/03/20,NURSE - BAND 2 - AGENCY,Heather Ward,HCL NURSING,HNSI0000309,238.94
Department of Health,Leicestershire Partnership NHS Trust,10/03/20,NURSE - BAND 5 - AGENCY,Heather Ward,HCL NURSING,HNSI0000309,659.63
Department of Health,Leicestershire Partnership NHS Trust,10/03/20,Nurse - Band 6 -Agency,Leicestershire Psych-oncology Service,HCL NURSING,HNSI0000309,213.98
Department of Health,Leicestershire Partnership NHS Trust,10/03/20,Nurse - Band 6 -Agency,Mental Health Triage Team,HCL NURSING,HNSI0000309,2778.96
Department of Health,Leicestershire Partnership NHS Trust,10/03/20,NURSE - BAND 2 - AGENCY,Mill Lodge,HCL NURSING,HNSI0000309,365.43
Department of Health,Leicestershire Partnership NHS Trust,10/03/20,NURSE - BAND 5 - AGENCY,Mill Lodge,HCL NURSING,HNSI0000309,287.92
Department of Health,Leicestershire Partnership NHS Trust,10/03/20,NURSE - BAND 2 - AGENCY,Phoenix Ward (HPC),HCL NURSING,HNSI0000309,320.50
Department of Health,Leicestershire Partnership NHS Trust,10/03/20,NURSE - BAND 5 - AGENCY,Place Of Safety Assessment Unit,HCL NURSING,HNSI0000309,329.81
Department of Health,Leicestershire Partnership NHS Trust,10/03/20,NURSE - BAND 2 - AGENCY,Thornton Ward - Bradgate Unit,HCL NURSING,HNSI0000309,168.41
Department of Health,Leicestershire Partnership NHS Trust,10/03/20,NURSE - BAND 2 - AGENCY,Watermead Ward (Bradgate Unit),HCL NURSING,HNSI0000309,733.54
Department of Health,Leicestershire Partnership NHS Trust,10/03/20,NURSE - BAND 5 - AGENCY,Watermead Ward (Bradgate Unit),HCL NURSING,HNSI0000309,2349.74
Department of Health,Leicestershire Partnership NHS Trust,11/03/20,NURSE - BAND 2 - AGENCY,Beechwood Ward,HCL NURSING,HNSI0000302,480.47
Department of Health,Leicestershire Partnership NHS Trust,11/03/20,NURSE - BAND 5 - AGENCY,Beechwood Ward,HCL NURSING,HNSI0000302,1438.68
Department of Health,Leicestershire Partnership NHS Trust,11/03/20,NURSE - BAND 5 - AGENCY,City Planned Care - East,HCL NURSING,HNSI0000302,22621.33
Department of Health,Leicestershire Partnership NHS Trust,11/03/20,NURSE - BAND 5 - AGENCY,City Planned Care - West,HCL NURSING,HNSI0000302,13526.46
Department of Health,Leicestershire Partnership NHS Trust,11/03/20,Nurse - Band 6 -Agency,City West CMHT MHSOP,HCL NURSING,HNSI0000302,2116.04
Department of Health,Leicestershire Partnership NHS Trust,11/03/20,NURSE - BAND 2 - AGENCY,Clarendon Ward,HCL NURSING,HNSI0000302,106.77
Department of Health,Leicestershire Partnership NHS Trust,11/03/20,NURSE - BAND 5 - AGENCY,Clarendon Ward,HCL NURSING,HNSI0000302,340.76
Department of Health,Leicestershire Partnership NHS Trust,11/03/20,NURSE - BAND 2 - AGENCY,Coalville Snibston Ward,HCL NURSING,HNSI0000302,587.76
Department of Health,Leicestershire Partnership NHS Trust,11/03/20,NURSE - BAND 5 - AGENCY,Coalville Snibston Ward,HCL NURSING,HNSI0000302,517.56
Department of Health,Leicestershire Partnership NHS Trust,11/03/20,NURSE - BAND 2 - AGENCY,Coalville Ward 2,HCL NURSING,HNSI0000302,530.64
Department of Health,Leicestershire Partnership NHS Trust,11/03/20,NURSE - BAND 5 - AGENCY,Coalville Ward 2,HCL NURSING,HNSI0000302,1720.84
Department of Health,Leicestershire Partnership NHS Trust,11/03/20,NURSE - BAND 2 - AGENCY,Coleman Ward,HCL NURSING,HNSI0000302,201.67
Department of Health,Leicestershire Partnership NHS Trust,11/03/20,NURSE - BAND 5 - AGENCY,Coleman Ward,HCL NURSING,HNSI0000302,312.72
Department of Health,Leicestershire Partnership NHS Trust,11/03/20,NURSE - BAND 5 - AGENCY,Dalgliesh Ward,HCL NURSING,HNSI0000302,337.04
Department of Health,Leicestershire Partnership NHS Trust,11/03/20,NURSE - BAND 5 - AGENCY,"East Planned Care - Oadby,Wigston & Harborough",HCL NURSING,HNSI0000302,4472.08
Department of Health,Leicestershire Partnership NHS Trust,11/03/20,NURSE - BAND 2 - AGENCY,Fielding Palmer Nursing,HCL NURSING,HNSI0000302,106.77
Department of Health,Leicestershire Partnership NHS Trust,11/03/20,NURSE - BAND 5 - AGENCY,Fielding Palmer Nursing,HCL NURSING,HNSI0000302,4281.13
Department of Health,Leicestershire Partnership NHS Trust,11/03/20,NURSE - BAND 2 - AGENCY,Gwendolen Ward,HCL NURSING,HNSI0000302,405.42
Department of Health,Leicestershire Partnership NHS Trust,11/03/20,NURSE - BAND 2 - AGENCY,H&B Comm Hosp East Ward,HCL NURSING,HNSI0000302,299.39
Department of Health,Leicestershire Partnership NHS Trust,11/03/20,NURSE - BAND 5 - AGENCY,H&B Comm Hosp East Ward,HCL NURSING,HNSI0000302,1457.36
Department of Health,Leicestershire Partnership NHS Trust,11/03/20,NURSE - BAND 2 - AGENCY,H&B Comm Hosp North Ward,HCL NURSING,HNSI0000302,558.27
Department of Health,Leicestershire Partnership NHS Trust,11/03/20,NURSE - BAND 5 - AGENCY,H&B Comm Hosp North Ward,HCL NURSING,HNSI0000302,843.27
Department of Health,Leicestershire Partnership NHS Trust,11/03/20,NURSE - BAND 2 - AGENCY,Kirby Ward,HCL NURSING,HNSI0000302,296.82
Department of Health,Leicestershire Partnership NHS Trust,11/03/20,NURSE - BAND 5 - AGENCY,Lough Swithland Ward,HCL NURSING,HNSI0000302,792.30
Department of Health,Leicestershire Partnership NHS Trust,11/03/20,NURSE - BAND 5 - AGENCY,Rutland Ward Nursing,HCL NURSING,HNSI0000302,1710.59
Department of Health,Leicestershire Partnership NHS Trust,11/03/20,NURSE - BAND 2 - AGENCY,St Lukes Stroke Ward,HCL NURSING,HNSI0000302,1380.85
Department of Health,Leicestershire Partnership NHS Trust,11/03/20,NURSE - BAND 5 - AGENCY,St Lukes Ward 3,HCL NURSING,HNSI0000302,1042.64
Department of Health,Leicestershire Partnership NHS Trust,11/03/20,NURSE - BAND 2 - AGENCY,Welford Ward,HCL NURSING,HNSI0000302,405.43
Department of Health,Leicestershire Partnership NHS Trust,11/03/20,NURSE - BAND 5 - AGENCY,Welford Ward,HCL NURSING,HNSI0000302,302.58
Department of Health,Leicestershire Partnership NHS Trust,11/03/20,Contract : Accomodation,Out of County Income - Inpateints Project,TURNING POINT,SI-TPS-00026678,47507.58
Department of Health,Leicestershire Partnership NHS Trust,11/03/20,Other Non-Medical Supplies & Services,Finance Department,RUTLAND COUNTY COUNCIL,9123430,43384.80
Department of Health,Leicestershire Partnership NHS Trust,11/03/20,Course / Training Expenses,Work Force Transformation,LOROS,0000004335,29000.00
Department of Health,Leicestershire Partnership NHS Trust,13/03/20,WIP Project Not in BS - Information Technology,Work in Progress,SERVELEC HEALTHCARE LTD,0070016734,48268.80
Department of Health,Leicestershire Partnership NHS Trust,13/03/20,Internal Printing (machines and ink),Estates & Facilities Central,LEXMARK INTERNATIONAL LTD,900650007870,36643.41
Department of Health,Leicestershire Partnership NHS Trust,16/03/20,Crs_NHS_LT1y -Resus Inventory Supplied.,Balance Sheet Collection,SUPPLY CHAIN CO LTD,1010249549,46611.44
Department of Health,Leicestershire Partnership NHS Trust,16/03/20,Medical Equipment Repairs / Maintenance,Medical Devices Maintenance (LPT),SUPPLY CHAIN CO LTD,2010007513,50260.82
Department of Health,Leicestershire Partnership NHS Trust,17/03/20,NURSE - BAND 2 - AGENCY,Acacia (Willows),HCL NURSING,HNSI0000318,168.41
Department of Health,Leicestershire Partnership NHS Trust,17/03/20,Nurse - Band 6 -Agency,Adult City East CMHT - Merlyn Vaz,HCL NURSING,HNSI0000318,1564.92
Department of Health,Leicestershire Partnership NHS Trust,17/03/20,Nurse - Band 6 -Agency,Adult County Charnwood CMHT - Loughborough Base,HCL NURSING,HNSI0000318,1069.88
Department of Health,Leicestershire Partnership NHS Trust,17/03/20,Nurse - Band 6 -Agency,Adult County West Leicestershire CMHT,HCL NURSING,HNSI0000318,1069.88
Department of Health,Leicestershire Partnership NHS Trust,17/03/20,NURSE - BAND 2 - AGENCY,Agnes Unit Management,HCL NURSING,HNSI0000318,465.04
Department of Health,Leicestershire Partnership NHS Trust,17/03/20,NURSE - BAND 5 - AGENCY,Agnes Unit Management,HCL NURSING,HNSI0000318,258.62
Department of Health,Leicestershire Partnership NHS Trust,17/03/20,NURSE - BAND 2 - AGENCY,Ashby Ward (Bradgate Unit),HCL NURSING,HNSI0000318,620.67
Department of Health,Leicestershire Partnership NHS Trust,17/03/20,NURSE - BAND 5 - AGENCY,Ashby Ward (Bradgate Unit),HCL NURSING,HNSI0000318,632.86
Department of Health,Leicestershire Partnership NHS Trust,17/03/20,NURSE - BAND 5 - AGENCY,Aston Ward (Bradgate Unit),HCL NURSING,HNSI0000318,989.44
Department of Health,Leicestershire Partnership NHS Trust,17/03/20,NURSE - BAND 5 - AGENCY,Beaumont Ward - Bradgate Unit,HCL NURSING,HNSI0000318,392.89
Department of Health,Leicestershire Partnership NHS Trust,17/03/20,NURSE - BAND 2 - AGENCY,Belvoir Psychiatric Intensive Care Unit,HCL NURSING,HNSI0000318,5183.75
Department of Health,Leicestershire Partnership NHS Trust,17/03/20,NURSE - BAND 5 - AGENCY,Belvoir Psychiatric Intensive Care Unit,HCL NURSING,HNSI0000318,2631.80
Department of Health,Leicestershire Partnership NHS Trust,17/03/20,Nurse - Band 6 -Agency,Crisis Resolution,HCL NURSING,HNSI0000318,7395.58
Department of Health,Leicestershire Partnership NHS Trust,17/03/20,NURSE - BAND 2 - AGENCY,Griffin Ward (HPC),HCL NURSING,HNSI0000318,113.85
Department of Health,Leicestershire Partnership NHS Trust,17/03/20,NURSE - BAND 5 - AGENCY,Griffin Ward (HPC),HCL NURSING,HNSI0000318,3072.44
Department of Health,Leicestershire Partnership NHS Trust,17/03/20,NURSE - BAND 5 - AGENCY,Heather Ward,HCL NURSING,HNSI0000318,2548.44
Department of Health,Leicestershire Partnership NHS Trust,17/03/20,Nurse - Band 6 -Agency,Leicestershire Psych-oncology Service,HCL NURSING,HNSI0000318,427.95
Department of Health,Leicestershire Partnership NHS Trust,17/03/20,Nurse - Band 6 -Agency,Mental Health Triage Team,HCL NURSING,HNSI0000318,4159.75
Department of Health,Leicestershire Partnership NHS Trust,17/03/20,NURSE - BAND 2 - AGENCY,Mill Lodge,HCL NURSING,HNSI0000318,370.45
Department of Health,Leicestershire Partnership NHS Trust,17/03/20,NURSE - BAND 2 - AGENCY,Phoenix Ward (HPC),HCL NURSING,HNSI0000318,779.48
Department of Health,Leicestershire Partnership NHS Trust,17/03/20,NURSE - BAND 5 - AGENCY,Stewart House,HCL NURSING,HNSI0000318,735.12
Department of Health,Leicestershire Partnership NHS Trust,17/03/20,NURSE - BAND 2 - AGENCY,Sycamore (Willows),HCL NURSING,HNSI0000318,109.19
Department of Health,Leicestershire Partnership NHS Trust,17/03/20,NURSE - BAND 2 - AGENCY,Watermead Ward (Bradgate Unit),HCL NURSING,HNSI0000318,211.12
Department of Health,Leicestershire Partnership NHS Trust,17/03/20,NURSE - BAND 5 - AGENCY,Watermead Ward (Bradgate Unit),HCL NURSING,HNSI0000318,533.48
Department of Health,Leicestershire Partnership NHS Trust,17/03/20,UHL Facilities Management SLA,Estates Central Invoices To Recharge,UHL NHS TRUST (RWE),L0239949,827106.58
Department of Health,Leicestershire Partnership NHS Trust,17/03/20,Med Trainees - FY1,Medical Trainees,UHL NHS TRUST (RWE),L0239967,29140.00
Department of Health,Leicestershire Partnership NHS Trust,17/03/20,Payroll Deductions - Kiddi Vouchers,Balance Sheet Collection,WIDER PLAN LTD,5167236,32855.68
Department of Health,Leicestershire Partnership NHS Trust,18/03/20,Pathology Service,CHS Inpatient Management,UHL NHS TRUST (RWE),L0240067,5445.21
Department of Health,Leicestershire Partnership NHS Trust,18/03/20,Pathology Service,Children Services Medical,UHL NHS TRUST (RWE),L0240067,11319.02
Department of Health,Leicestershire Partnership NHS Trust,18/03/20,Pathology Service,UHL Expenditure Contract,UHL NHS TRUST (RWE),L0240067,11834.86
Department of Health,Leicestershire Partnership NHS Trust,18/03/20,PAT Testing,CHS Inpatient Management,UHL NHS TRUST (RWE),L0240066,5633.71
Department of Health,Leicestershire Partnership NHS Trust,18/03/20,Pathology Service,Children Services Medical,UHL NHS TRUST (RWE),L0240066,11561.97
Department of Health,Leicestershire Partnership NHS Trust,18/03/20,Pathology Service,UHL Expenditure Contract,UHL NHS TRUST (RWE),L0240066,13218.42
Department of Health,Leicestershire Partnership NHS Trust,18/03/20,Landline Telephone Rental / Calls,"Beaumont Leys Health Centre (P94, LPT)",VIRGIN MEDIA BUSINESS,853083001/004/0320,418.57
Department of Health,Leicestershire Partnership NHS Trust,18/03/20,Landline Telephone Rental / Calls,Belgrave Health Centre (CHP),VIRGIN MEDIA BUSINESS,853083001/004/0320,370.41
Department of Health,Leicestershire Partnership NHS Trust,18/03/20,Landline Telephone Rental / Calls,"Bennion Centre (including Forest Grange Day Unit) (P8, LPT)",VIRGIN MEDIA BUSINESS,853083001/004/0320,7.74
Department of Health,Leicestershire Partnership NHS Trust,18/03/20,Landline Telephone Rental / Calls,"Bradgate Unit (including Glenvale day Unit) (P7, LPT)",VIRGIN MEDIA BUSINESS,853083001/004/0320,7653.55
Department of Health,Leicestershire Partnership NHS Trust,18/03/20,Landline Telephone Rental / Calls,Braunstone Health and Social Care Centre (Part) (PROPCO),VIRGIN MEDIA BUSINESS,853083001/004/0320,1243.62
Department of Health,Leicestershire Partnership NHS Trust,18/03/20,Landline Telephone Rental / Calls,Bridge Park Plaza - First Floor (LPT),VIRGIN MEDIA BUSINESS,853083001/004/0320,4113.66
Department of Health,Leicestershire Partnership NHS Trust,18/03/20,Landline Telephone Rental / Calls,"Coalville Community Hospital (P138, LPT)",VIRGIN MEDIA BUSINESS,853083001/004/0320,1365.56
Department of Health,Leicestershire Partnership NHS Trust,18/03/20,Landline Telephone Rental / Calls,"Coalville Health Centre (P121, LPT)",VIRGIN MEDIA BUSINESS,853083001/004/0320,300.67
Department of Health,Leicestershire Partnership NHS Trust,18/03/20,Landline Telephone Rental / Calls,County Hall,VIRGIN MEDIA BUSINESS,853083001/004/0320,1467.25
Department of Health,Leicestershire Partnership NHS Trust,18/03/20,Landline Telephone Rental / Calls,Estates & Facilities Central,VIRGIN MEDIA BUSINESS,853083001/004/0320,4778.63
Department of Health,Leicestershire Partnership NHS Trust,18/03/20,Landline Telephone Rental / Calls,"Evington Centre (P6, LPT)",VIRGIN MEDIA BUSINESS,853083001/004/0320,1529.10
Department of Health,Leicestershire Partnership NHS Trust,18/03/20,Landline Telephone Rental / Calls,HIS,VIRGIN MEDIA BUSINESS,853083001/004/0320,2895.98
Department of Health,Leicestershire Partnership NHS Trust,18/03/20,Landline Telephone Rental / Calls,"Hawthorne Centre - Coalville (P14, LPT)",VIRGIN MEDIA BUSINESS,853083001/004/0320,520.01
Department of Health,Leicestershire Partnership NHS Trust,18/03/20,Landline Telephone Rental / Calls,Hinckley & District Hospital (PROPCO),VIRGIN MEDIA BUSINESS,853083001/004/0320,1076.57
Department of Health,Leicestershire Partnership NHS Trust,18/03/20,Landline Telephone Rental / Calls,"Hinckley and Bosworth Community Hospital (Sunnyside) (P133, LPT)",VIRGIN MEDIA BUSINESS,853083001/004/0320,1002.44
Department of Health,Leicestershire Partnership NHS Trust,18/03/20,Landline Telephone Rental / Calls,Hood Park Leisure Centre Clinic,VIRGIN MEDIA BUSINESS,853083001/004/0320,81.88
Department of Health,Leicestershire Partnership NHS Trust,18/03/20,Landline Telephone Rental / Calls,"Hynca Lodge (P33, LPT)",VIRGIN MEDIA BUSINESS,853083001/004/0320,389.36
Department of Health,Leicestershire Partnership NHS Trust,18/03/20,Landline Telephone Rental / Calls,"Legion House, Ashby",VIRGIN MEDIA BUSINESS,853083001/004/0320,63.22
Department of Health,Leicestershire Partnership NHS Trust,18/03/20,Landline Telephone Rental / Calls,Loughborough Health Centre (PROPCO),VIRGIN MEDIA BUSINESS,853083001/004/0320,8.42
Department of Health,Leicestershire Partnership NHS Trust,18/03/20,Landline Telephone Rental / Calls,"Loughborough Hospital (P136, LPT)",VIRGIN MEDIA BUSINESS,853083001/004/0320,4664.70
Department of Health,Leicestershire Partnership NHS Trust,18/03/20,Landline Telephone Rental / Calls,Mawson House (LPT),VIRGIN MEDIA BUSINESS,853083001/004/0320,486.76
Department of Health,Leicestershire Partnership NHS Trust,18/03/20,Landline Telephone Rental / Calls,Melbourne Centre (Pt Grnd flr) (PROPCO),VIRGIN MEDIA BUSINESS,853083001/004/0320,6.45
Department of Health,Leicestershire Partnership NHS Trust,18/03/20,Landline Telephone Rental / Calls,Melton Mowbray Hospital (previously St. Mary's) (PROPCO),VIRGIN MEDIA BUSINESS,853083001/004/0320,1583.27
Department of Health,Leicestershire Partnership NHS Trust,18/03/20,Landline Telephone Rental / Calls,Merlyn Vaz Centre (CHP),VIRGIN MEDIA BUSINESS,853083001/004/0320,2161.17
Department of Health,Leicestershire Partnership NHS Trust,18/03/20,Landline Telephone Rental / Calls,"Mett Centre (P49, LPT)",VIRGIN MEDIA BUSINESS,853083001/004/0320,92.09
Department of Health,Leicestershire Partnership NHS Trust,18/03/20,Landline Telephone Rental / Calls,NSPCC Training Cente,VIRGIN MEDIA BUSINESS,853083001/004/0320,179.90
Department of Health,Leicestershire Partnership NHS Trust,18/03/20,Landline Telephone Rental / Calls,New Parks Health Centre (PROPCO),VIRGIN MEDIA BUSINESS,853083001/004/0320,1373.49
Department of Health,Leicestershire Partnership NHS Trust,18/03/20,Landline Telephone Rental / Calls,"OSL House (P54, LPT)",VIRGIN MEDIA BUSINESS,853083001/004/0320,3236.05
Department of Health,Leicestershire Partnership NHS Trust,18/03/20,Landline Telephone Rental / Calls,"Orchard Resource Centre (P15, LPT)",VIRGIN MEDIA BUSINESS,853083001/004/0320,551.82
Department of Health,Leicestershire Partnership NHS Trust,18/03/20,Landline Telephone Rental / Calls,Pasley Road Health Centre (PROPCO),VIRGIN MEDIA BUSINESS,853083001/004/0320,126.74
Department of Health,Leicestershire Partnership NHS Trust,18/03/20,Landline Telephone Rental / Calls,"Prince Philip House (P96, LPT)",VIRGIN MEDIA BUSINESS,853083001/004/0320,1617.78
Department of Health,Leicestershire Partnership NHS Trust,18/03/20,Landline Telephone Rental / Calls,Rushey Mead Health Centre (PROPCO),VIRGIN MEDIA BUSINESS,853083001/004/0320,68.39
Department of Health,Leicestershire Partnership NHS Trust,18/03/20,Landline Telephone Rental / Calls,"Shepshed Health Centre (P123, LPT)",VIRGIN MEDIA BUSINESS,853083001/004/0320,9.37
Department of Health,Leicestershire Partnership NHS Trust,18/03/20,Landline Telephone Rental / Calls,"Springfield Road Health Centre (P92, LPT)",VIRGIN MEDIA BUSINESS,853083001/004/0320,386.39
Department of Health,Leicestershire Partnership NHS Trust,18/03/20,Landline Telephone Rental / Calls,St Johns House (1st Floor) (PROPCO),VIRGIN MEDIA BUSINESS,853083001/004/0320,1522.95
Department of Health,Leicestershire Partnership NHS Trust,18/03/20,Landline Telephone Rental / Calls,St Peters Primary Care Centre (CHP),VIRGIN MEDIA BUSINESS,853083001/004/0320,2409.18
Department of Health,Leicestershire Partnership NHS Trust,18/03/20,Landline Telephone Rental / Calls,"Stewart House (P61, LPT)",VIRGIN MEDIA BUSINESS,853083001/004/0320,7.74
Department of Health,Leicestershire Partnership NHS Trust,18/03/20,Landline Telephone Rental / Calls,"Swithland House - London Road 352 (P44, LPT)",VIRGIN MEDIA BUSINESS,853083001/004/0320,348.60
Department of Health,Leicestershire Partnership NHS Trust,18/03/20,Landline Telephone Rental / Calls,"The Cedars (P19, LPT)",VIRGIN MEDIA BUSINESS,853083001/004/0320,613.96
Department of Health,Leicestershire Partnership NHS Trust,18/03/20,Landline Telephone Rental / Calls,"The Willows - Cordelia Close (P22, LPT)",VIRGIN MEDIA BUSINESS,853083001/004/0320,500.98
Department of Health,Leicestershire Partnership NHS Trust,18/03/20,Landline Telephone Rental / Calls,Uppingham Road Health Centre (PROPCO),VIRGIN MEDIA BUSINESS,853083001/004/0320,264.69
Department of Health,Leicestershire Partnership NHS Trust,18/03/20,Landline Telephone Rental / Calls,"Valentine Centre (P3, LPT)",VIRGIN MEDIA BUSINESS,853083001/004/0320,1795.38
Department of Health,Leicestershire Partnership NHS Trust,18/03/20,Landline Telephone Rental / Calls,Warren Park Way 25 (PROPCO),VIRGIN MEDIA BUSINESS,853083001/004/0320,796.13
Department of Health,Leicestershire Partnership NHS Trust,18/03/20,Landline Telephone Rental / Calls,"Westcotes Group -Westcotes House (P78, LPT)",VIRGIN MEDIA BUSINESS,853083001/004/0320,1398.02
Department of Health,Leicestershire Partnership NHS Trust,18/03/20,Landline Telephone Rental / Calls,Westcotes Health Centre (CHP),VIRGIN MEDIA BUSINESS,853083001/004/0320,762.06
Department of Health,Leicestershire Partnership NHS Trust,18/03/20,Landline Telephone Rental / Calls,"Winstanley Drive Health Centre (P8, LPT)",VIRGIN MEDIA BUSINESS,853083001/004/0320,430.10
Department of Health,Leicestershire Partnership NHS Trust,18/03/20,NURSE - BAND 2 - AGENCY,Beechwood Ward,HCL NURSING,HNSI0000319,659.12
Department of Health,Leicestershire Partnership NHS Trust,18/03/20,NURSE - BAND 5 - AGENCY,Beechwood Ward,HCL NURSING,HNSI0000319,2939.43
Department of Health,Leicestershire Partnership NHS Trust,18/03/20,NURSE - BAND 5 - AGENCY,City Planned Care - East,HCL NURSING,HNSI0000319,23032.83
Department of Health,Leicestershire Partnership NHS Trust,18/03/20,NURSE - BAND 5 - AGENCY,City Planned Care - West,HCL NURSING,HNSI0000319,11302.26
Department of Health,Leicestershire Partnership NHS Trust,18/03/20,NURSE - BAND 2 - AGENCY,Clarendon Ward,HCL NURSING,HNSI0000319,658.29
Department of Health,Leicestershire Partnership NHS Trust,18/03/20,NURSE - BAND 5 - AGENCY,Clarendon Ward,HCL NURSING,HNSI0000319,1771.03
Department of Health,Leicestershire Partnership NHS Trust,18/03/20,NURSE - BAND 2 - AGENCY,Coalville Snibston Ward,HCL NURSING,HNSI0000319,1271.60
Department of Health,Leicestershire Partnership NHS Trust,18/03/20,NURSE - BAND 5 - AGENCY,Coalville Snibston Ward,HCL NURSING,HNSI0000319,514.90
Department of Health,Leicestershire Partnership NHS Trust,18/03/20,NURSE - BAND 2 - AGENCY,Coalville Ward 2,HCL NURSING,HNSI0000319,318.70
Department of Health,Leicestershire Partnership NHS Trust,18/03/20,NURSE - BAND 5 - AGENCY,Coalville Ward 2,HCL NURSING,HNSI0000319,514.90
Department of Health,Leicestershire Partnership NHS Trust,18/03/20,NURSE - BAND 2 - AGENCY,Coleman Ward,HCL NURSING,HNSI0000319,194.67
Department of Health,Leicestershire Partnership NHS Trust,18/03/20,NURSE - BAND 5 - AGENCY,Coleman Ward,HCL NURSING,HNSI0000319,302.58
Department of Health,Leicestershire Partnership NHS Trust,18/03/20,NURSE - BAND 5 - AGENCY,Dalgliesh Ward,HCL NURSING,HNSI0000319,1283.14
Department of Health,Leicestershire Partnership NHS Trust,18/03/20,NURSE - BAND 5 - AGENCY,"East Planned Care - Oadby,Wigston & Harborough",HCL NURSING,HNSI0000319,5193.11
Department of Health,Leicestershire Partnership NHS Trust,18/03/20,NURSE - BAND 5 - AGENCY,Fielding Palmer Nursing,HCL NURSING,HNSI0000319,2299.88
Department of Health,Leicestershire Partnership NHS Trust,18/03/20,NURSE - BAND 2 - AGENCY,Gwendolen Ward,HCL NURSING,HNSI0000319,1265.80
Department of Health,Leicestershire Partnership NHS Trust,18/03/20,NURSE - BAND 5 - AGENCY,Gwendolen Ward,HCL NURSING,HNSI0000319,2071.28
Department of Health,Leicestershire Partnership NHS Trust,18/03/20,NURSE - BAND 2 - AGENCY,H&B Comm Hosp East Ward,HCL NURSING,HNSI0000319,458.50
Department of Health,Leicestershire Partnership NHS Trust,18/03/20,NURSE - BAND 5 - AGENCY,H&B Comm Hosp East Ward,HCL NURSING,HNSI0000319,386.06
Department of Health,Leicestershire Partnership NHS Trust,18/03/20,NURSE - BAND 2 - AGENCY,H&B Comm Hosp North Ward,HCL NURSING,HNSI0000319,1172.46
Department of Health,Leicestershire Partnership NHS Trust,18/03/20,NURSE - BAND 2 - AGENCY,Kirby Ward,HCL NURSING,HNSI0000319,1208.65
Department of Health,Leicestershire Partnership NHS Trust,18/03/20,NURSE - BAND 5 - AGENCY,Kirby Ward,HCL NURSING,HNSI0000319,302.58
Department of Health,Leicestershire Partnership NHS Trust,18/03/20,NURSE - BAND 5 - AGENCY,Rutland Ward Nursing,HCL NURSING,HNSI0000319,2392.63
Department of Health,Leicestershire Partnership NHS Trust,18/03/20,NURSE - BAND 2 - AGENCY,St Lukes Stroke Ward,HCL NURSING,HNSI0000319,675.97
Department of Health,Leicestershire Partnership NHS Trust,18/03/20,NURSE - BAND 5 - AGENCY,St Lukes Stroke Ward,HCL NURSING,HNSI0000319,291.48
Department of Health,Leicestershire Partnership NHS Trust,18/03/20,NURSE - BAND 2 - AGENCY,St Lukes Ward 3,HCL NURSING,HNSI0000319,286.98
Department of Health,Leicestershire Partnership NHS Trust,18/03/20,NURSE - BAND 5 - AGENCY,St Lukes Ward 3,HCL NURSING,HNSI0000319,2080.25
Department of Health,Leicestershire Partnership NHS Trust,18/03/20,NURSE - BAND 2 - AGENCY,Welford Ward,HCL NURSING,HNSI0000319,389.35
Department of Health,Leicestershire Partnership NHS Trust,18/03/20,NURSE - BAND 5 - AGENCY,Welford Ward,HCL NURSING,HNSI0000319,302.58
Department of Health,Leicestershire Partnership NHS Trust,18/03/20,NURSE - BAND 2 - AGENCY,Beechwood Ward,HCL NURSING,HNSI0000310,897.77
Department of Health,Leicestershire Partnership NHS Trust,18/03/20,NURSE - BAND 5 - AGENCY,Beechwood Ward,HCL NURSING,HNSI0000310,817.04
Department of Health,Leicestershire Partnership NHS Trust,18/03/20,NURSE - BAND 5 - AGENCY,City Planned Care - East,HCL NURSING,HNSI0000310,14791.40
Department of Health,Leicestershire Partnership NHS Trust,18/03/20,NURSE - BAND 5 - AGENCY,City Planned Care - West,HCL NURSING,HNSI0000310,13493.47
Department of Health,Leicestershire Partnership NHS Trust,18/03/20,Nurse - Band 6 -Agency,City West CMHT MHSOP,HCL NURSING,HNSI0000310,3162.20
Department of Health,Leicestershire Partnership NHS Trust,18/03/20,NURSE - BAND 2 - AGENCY,Clarendon Ward,HCL NURSING,HNSI0000310,109.19
Department of Health,Leicestershire Partnership NHS Trust,18/03/20,NURSE - BAND 5 - AGENCY,Clarendon Ward,HCL NURSING,HNSI0000310,1128.28
Department of Health,Leicestershire Partnership NHS Trust,18/03/20,NURSE - BAND 2 - AGENCY,Coalville Snibston Ward,HCL NURSING,HNSI0000310,211.93
Department of Health,Leicestershire Partnership NHS Trust,18/03/20,NURSE - BAND 2 - AGENCY,Coalville Ward 2,HCL NURSING,HNSI0000310,423.87
Department of Health,Leicestershire Partnership NHS Trust,18/03/20,NURSE - BAND 5 - AGENCY,Coalville Ward 2,HCL NURSING,HNSI0000310,1067.58
Department of Health,Leicestershire Partnership NHS Trust,18/03/20,NURSE - BAND 2 - AGENCY,Coleman Ward,HCL NURSING,HNSI0000310,182.01
Department of Health,Leicestershire Partnership NHS Trust,18/03/20,NURSE - BAND 5 - AGENCY,Coleman Ward,HCL NURSING,HNSI0000310,595.66
Department of Health,Leicestershire Partnership NHS Trust,18/03/20,NURSE - BAND 2 - AGENCY,Dalgliesh Ward,HCL NURSING,HNSI0000310,239.57
Department of Health,Leicestershire Partnership NHS Trust,18/03/20,NURSE - BAND 5 - AGENCY,Dalgliesh Ward,HCL NURSING,HNSI0000310,406.23
Department of Health,Leicestershire Partnership NHS Trust,18/03/20,NURSE - BAND 5 - AGENCY,"East Planned Care - Oadby,Wigston & Harborough",HCL NURSING,HNSI0000310,4676.62
Department of Health,Leicestershire Partnership NHS Trust,18/03/20,NURSE - BAND 5 - AGENCY,Fielding Palmer Nursing,HCL NURSING,HNSI0000310,2950.29
Department of Health,Leicestershire Partnership NHS Trust,18/03/20,NURSE - BAND 2 - AGENCY,Gwendolen Ward,HCL NURSING,HNSI0000310,194.67
Department of Health,Leicestershire Partnership NHS Trust,18/03/20,NURSE - BAND 5 - AGENCY,Gwendolen Ward,HCL NURSING,HNSI0000310,1224.54
Department of Health,Leicestershire Partnership NHS Trust,18/03/20,NURSE - BAND 2 - AGENCY,H&B Comm Hosp East Ward,HCL NURSING,HNSI0000310,275.18
Department of Health,Leicestershire Partnership NHS Trust,18/03/20,NURSE - BAND 5 - AGENCY,H&B Comm Hosp East Ward,HCL NURSING,HNSI0000310,1049.13
Department of Health,Leicestershire Partnership NHS Trust,18/03/20,NURSE - BAND 2 - AGENCY,H&B Comm Hosp North Ward,HCL NURSING,HNSI0000310,289.40
Department of Health,Leicestershire Partnership NHS Trust,18/03/20,NURSE - BAND 5 - AGENCY,H&B Comm Hosp North Ward,HCL NURSING,HNSI0000310,406.23
Department of Health,Leicestershire Partnership NHS Trust,18/03/20,NURSE - BAND 2 - AGENCY,Kirby Ward,HCL NURSING,HNSI0000310,1147.29
Department of Health,Leicestershire Partnership NHS Trust,18/03/20,NURSE - BAND 2 - AGENCY,Lough Swithland Ward,HCL NURSING,HNSI0000310,109.19
Department of Health,Leicestershire Partnership NHS Trust,18/03/20,NURSE - BAND 5 - AGENCY,Lough Swithland Ward,HCL NURSING,HNSI0000310,386.06
Department of Health,Leicestershire Partnership NHS Trust,18/03/20,NURSE - BAND 5 - AGENCY,Rutland Ward Nursing,HCL NURSING,HNSI0000310,3626.70
Department of Health,Leicestershire Partnership NHS Trust,18/03/20,NURSE - BAND 2 - AGENCY,St Lukes Stroke Ward,HCL NURSING,HNSI0000310,1979.59
Department of Health,Leicestershire Partnership NHS Trust,18/03/20,NURSE - BAND 5 - AGENCY,St Lukes Ward 3,HCL NURSING,HNSI0000310,3668.54
Department of Health,Leicestershire Partnership NHS Trust,18/03/20,NURSE - BAND 2 - AGENCY,Welford Ward,HCL NURSING,HNSI0000310,201.67
Department of Health,Leicestershire Partnership NHS Trust,18/03/20,NURSE - BAND 5 - AGENCY,Welford Ward,HCL NURSING,HNSI0000310,302.58
Department of Health,Leicestershire Partnership NHS Trust,19/03/20,Drugs,Adult City Drugs,JANSSEN-CILAG LTD,930632251,10804.28
Department of Health,Leicestershire Partnership NHS Trust,19/03/20,Drugs,Adult County Drugs,JANSSEN-CILAG LTD,930632251,16206.43
Department of Health,Leicestershire Partnership NHS Trust,19/03/20,WIP Project Not in BS - Buildings excl Dwellings,Work in Progress,INTERSERVE CONSTRUCTION LTD,VEM55259,31676.75
Department of Health,Leicestershire Partnership NHS Trust,19/03/20,WIP Project Not in BS - Buildings excl Dwellings,Work in Progress,INTERSERVE CONSTRUCTION LTD,VEM55256,30810.92
Department of Health,Leicestershire Partnership NHS Trust,19/03/20,WIP Project Not in BS - Buildings excl Dwellings,Work in Progress,INTERSERVE CONSTRUCTION LTD,VEM55247,837981.90
Department of Health,Leicestershire Partnership NHS Trust,19/03/20,Other Non-Medical Supplies & Services,Inter Unit I & E Distribution,UHL NHS TRUST (RWE),L0240151,26156.40
Department of Health,Leicestershire Partnership NHS Trust,20/03/20,PropCo Estates Management,Melton Mowbray Hospital (previously St. Mary's) (PROPCO),NHS PROPERTY SERVICES LTD,00000001/H277924,26544.62
Department of Health,Leicestershire Partnership NHS Trust,20/03/20,PropCo Estates Management,Charnwood Mill (PROPCO),NHS PROPERTY SERVICES LTD,00000001/H277928,37492.17
Department of Health,Leicestershire Partnership NHS Trust,20/03/20,PropCo Estates Management,St. Luke's Hospital (PROPCO),NHS PROPERTY SERVICES LTD,00000001/H277931,47500.00
Department of Health,Leicestershire Partnership NHS Trust,20/03/20,PropCo Estates Management,Melton Mowbray Hospital (previously St. Mary's) (PROPCO),NHS PROPERTY SERVICES LTD,00000001/H277933,47781.66
Department of Health,Leicestershire Partnership NHS Trust,20/03/20,PropCo Estates Management,"Braunstone Health and Social Care Centre (part) (P16, LPT)",NHS PROPERTY SERVICES LTD,00000001/H277937,49918.76
Department of Health,Leicestershire Partnership NHS Trust,20/03/20,PropCo Estates Management,St. Luke's Hospital (PROPCO),NHS PROPERTY SERVICES LTD,00000001/H277939,42975.40
Department of Health,Leicestershire Partnership NHS Trust,23/03/20,Crs_NHS_LT1y -Resus Inventory Supplied.,Balance Sheet Collection,SUPPLY CHAIN CO LTD,1010254817,32338.40
Department of Health,Leicestershire Partnership NHS Trust,23/03/20,Med GP Trainees,Medical Trainees,ST.HELENS & KNOWSLEY NHS TRUST,16794560,60000.00
Department of Health,Leicestershire Partnership NHS Trust,23/03/20,WIP Project Not in BS - Buildings excl Dwellings,Work in Progress,INTERSERVE CONSTRUCTION LTD,VEM55266,104487.76
Department of Health,Leicestershire Partnership NHS Trust,24/03/20,Nurse - Band 6 -Agency,Adult City East CMHT - Merlyn Vaz,HCL NURSING,HNSI0000325,5727.79
Department of Health,Leicestershire Partnership NHS Trust,24/03/20,Nurse - Band 6 -Agency,Adult County Charnwood CMHT - Loughborough Base,HCL NURSING,HNSI0000325,73.63
Department of Health,Leicestershire Partnership NHS Trust,24/03/20,Nurse - Band 6 -Agency,Adult County West Leicestershire CMHT,HCL NURSING,HNSI0000325,1069.88
Department of Health,Leicestershire Partnership NHS Trust,24/03/20,NURSE - BAND 2 - AGENCY,Agnes Unit Management,HCL NURSING,HNSI0000325,1748.25
Department of Health,Leicestershire Partnership NHS Trust,24/03/20,NURSE - BAND 5 - AGENCY,Agnes Unit Management,HCL NURSING,HNSI0000325,298.06
Department of Health,Leicestershire Partnership NHS Trust,24/03/20,NURSE - BAND 2 - AGENCY,Ashby Ward (Bradgate Unit),HCL NURSING,HNSI0000325,826.16
Department of Health,Leicestershire Partnership NHS Trust,24/03/20,NURSE - BAND 5 - AGENCY,Ashby Ward (Bradgate Unit),HCL NURSING,HNSI0000325,732.84
Department of Health,Leicestershire Partnership NHS Trust,24/03/20,Nurse - Band 6 -Agency,Assertive Outreach Services,HCL NURSING,HNSI0000325,2139.75
Department of Health,Leicestershire Partnership NHS Trust,24/03/20,NURSE - BAND 2 - AGENCY,Beaumont Ward - Bradgate Unit,HCL NURSING,HNSI0000325,415.15
Department of Health,Leicestershire Partnership NHS Trust,24/03/20,NURSE - BAND 2 - AGENCY,Belvoir Psychiatric Intensive Care Unit,HCL NURSING,HNSI0000325,6299.33
Department of Health,Leicestershire Partnership NHS Trust,24/03/20,NURSE - BAND 5 - AGENCY,Belvoir Psychiatric Intensive Care Unit,HCL NURSING,HNSI0000325,4206.61
Department of Health,Leicestershire Partnership NHS Trust,24/03/20,NURSE - BAND 2 - AGENCY,Bosworth Ward - Bradgate Unit,HCL NURSING,HNSI0000325,701.99
Department of Health,Leicestershire Partnership NHS Trust,24/03/20,Nurse - Band 6 -Agency,Crisis Resolution,HCL NURSING,HNSI0000325,4801.20
Department of Health,Leicestershire Partnership NHS Trust,24/03/20,NURSE - BAND 5 - AGENCY,Griffin Ward (HPC),HCL NURSING,HNSI0000325,2749.57
Department of Health,Leicestershire Partnership NHS Trust,24/03/20,NURSE - BAND 2 - AGENCY,Heather Ward,HCL NURSING,HNSI0000325,277.94
Department of Health,Leicestershire Partnership NHS Trust,24/03/20,NURSE - BAND 5 - AGENCY,Heather Ward,HCL NURSING,HNSI0000325,1543.22
Department of Health,Leicestershire Partnership NHS Trust,24/03/20,Nurse - Band 6 -Agency,Leicestershire Psych-oncology Service,HCL NURSING,HNSI0000325,693.72
Department of Health,Leicestershire Partnership NHS Trust,24/03/20,Nurse - Band 6 -Agency,Mental Health Triage Team,HCL NURSING,HNSI0000325,1693.46
Department of Health,Leicestershire Partnership NHS Trust,24/03/20,NURSE - BAND 2 - AGENCY,Mill Lodge,HCL NURSING,HNSI0000325,192.22
Department of Health,Leicestershire Partnership NHS Trust,24/03/20,NURSE - BAND 2 - AGENCY,Phoenix Ward (HPC),HCL NURSING,HNSI0000325,220.57
Department of Health,Leicestershire Partnership NHS Trust,24/03/20,NURSE - BAND 5 - AGENCY,Stewart House,HCL NURSING,HNSI0000325,765.10
Department of Health,Leicestershire Partnership NHS Trust,24/03/20,NURSE - BAND 2 - AGENCY,Thornton Ward - Bradgate Unit,HCL NURSING,HNSI0000325,163.71
Department of Health,Leicestershire Partnership NHS Trust,24/03/20,NURSE - BAND 5 - AGENCY,Thornton Ward - Bradgate Unit,HCL NURSING,HNSI0000325,635.14
Department of Health,Leicestershire Partnership NHS Trust,24/03/20,NURSE - BAND 5 - AGENCY,Watermead Ward (Bradgate Unit),HCL NURSING,HNSI0000325,2689.22
Department of Health,Leicestershire Partnership NHS Trust,26/03/20,Computer Software,HIS Systems & Development,COMMONTIME LTD,2020-006,60000.00
Department of Health,Leicestershire Partnership NHS Trust,26/03/20,NURSE - BAND 2 - AGENCY,Beechwood Ward,HCL NURSING,HNSI0000326,494.54
Department of Health,Leicestershire Partnership NHS Trust,26/03/20,NURSE - BAND 5 - AGENCY,Beechwood Ward,HCL NURSING,HNSI0000326,3595.46
Department of Health,Leicestershire Partnership NHS Trust,26/03/20,NURSE - BAND 5 - AGENCY,City Planned Care - East,HCL NURSING,HNSI0000326,17249.70
Department of Health,Leicestershire Partnership NHS Trust,26/03/20,NURSE - BAND 5 - AGENCY,City Planned Care - West,HCL NURSING,HNSI0000326,10151.06
Department of Health,Leicestershire Partnership NHS Trust,26/03/20,Nurse - Band 6 -Agency,City West CMHT MHSOP,HCL NURSING,HNSI0000326,3185.91
Department of Health,Leicestershire Partnership NHS Trust,26/03/20,NURSE - BAND 5 - AGENCY,Clarendon Ward,HCL NURSING,HNSI0000326,2682.35
Department of Health,Leicestershire Partnership NHS Trust,26/03/20,NURSE - BAND 2 - AGENCY,Coalville Ward 2,HCL NURSING,HNSI0000326,1695.13
Department of Health,Leicestershire Partnership NHS Trust,26/03/20,NURSE - BAND 5 - AGENCY,Coalville Ward 2,HCL NURSING,HNSI0000326,1766.15
Department of Health,Leicestershire Partnership NHS Trust,26/03/20,NURSE - BAND 2 - AGENCY,Coleman Ward,HCL NURSING,HNSI0000326,364.02
Department of Health,Leicestershire Partnership NHS Trust,26/03/20,NURSE - BAND 5 - AGENCY,Coleman Ward,HCL NURSING,HNSI0000326,302.58
Department of Health,Leicestershire Partnership NHS Trust,26/03/20,NURSE - BAND 5 - AGENCY,"East Planned Care - Oadby,Wigston & Harborough",HCL NURSING,HNSI0000326,4925.31
Department of Health,Leicestershire Partnership NHS Trust,26/03/20,NURSE - BAND 5 - AGENCY,Fielding Palmer Nursing,HCL NURSING,HNSI0000326,2736.12
Department of Health,Leicestershire Partnership NHS Trust,26/03/20,NURSE - BAND 2 - AGENCY,Gwendolen Ward,HCL NURSING,HNSI0000326,1745.00
Department of Health,Leicestershire Partnership NHS Trust,26/03/20,NURSE - BAND 5 - AGENCY,Gwendolen Ward,HCL NURSING,HNSI0000326,1317.38
Department of Health,Leicestershire Partnership NHS Trust,26/03/20,NURSE - BAND 5 - AGENCY,H&B Comm Hosp East Ward,HCL NURSING,HNSI0000326,1538.55
Department of Health,Leicestershire Partnership NHS Trust,26/03/20,NURSE - BAND 2 - AGENCY,H&B Comm Hosp North Ward,HCL NURSING,HNSI0000326,766.32
Department of Health,Leicestershire Partnership NHS Trust,26/03/20,NURSE - BAND 5 - AGENCY,H&B Comm Hosp North Ward,HCL NURSING,HNSI0000326,2266.63
Department of Health,Leicestershire Partnership NHS Trust,26/03/20,NURSE - BAND 2 - AGENCY,Kirby Ward,HCL NURSING,HNSI0000326,887.88
Department of Health,Leicestershire Partnership NHS Trust,26/03/20,NURSE - BAND 2 - AGENCY,Lough Swithland Ward,HCL NURSING,HNSI0000326,277.94
Department of Health,Leicestershire Partnership NHS Trust,26/03/20,NURSE - BAND 5 - AGENCY,Lough Swithland Ward,HCL NURSING,HNSI0000326,525.41
Department of Health,Leicestershire Partnership NHS Trust,26/03/20,NURSE - BAND 5 - AGENCY,Rutland Ward Nursing,HCL NURSING,HNSI0000326,2362.63
Department of Health,Leicestershire Partnership NHS Trust,26/03/20,NURSE - BAND 2 - AGENCY,St Lukes Ward 3,HCL NURSING,HNSI0000326,176.21
Department of Health,Leicestershire Partnership NHS Trust,26/03/20,NURSE - BAND 5 - AGENCY,St Lukes Ward 3,HCL NURSING,HNSI0000326,3580.67
Department of Health,Leicestershire Partnership NHS Trust,26/03/20,NURSE - BAND 2 - AGENCY,Welford Ward,HCL NURSING,HNSI0000326,1657.49
Department of Health,Leicestershire Partnership NHS Trust,26/03/20,NURSE - BAND 5 - AGENCY,Welford Ward,HCL NURSING,HNSI0000326,302.58
Department of Health,Leicestershire Partnership NHS Trust,26/03/20,Medical & Surgical Equipment,COVID 19,INNOVA CARE CONCEPTS,124900,293880.00
Department of Health,Leicestershire Partnership NHS Trust,26/03/20,Postage & Carriage,COVID 19,INNOVA CARE CONCEPTS,124900,3000.00
Department of Health,Leicestershire Partnership NHS Trust,27/03/20,NURSE - BAND 2 - AGENCY,Beechwood Ward,HCL NURSING,HNSI0000330,885.86
Department of Health,Leicestershire Partnership NHS Trust,27/03/20,NURSE - BAND 5 - AGENCY,Beechwood Ward,HCL NURSING,HNSI0000330,2854.97
Department of Health,Leicestershire Partnership NHS Trust,27/03/20,NURSE - BAND 5 - AGENCY,City Planned Care - East,HCL NURSING,HNSI0000330,23568.24
Department of Health,Leicestershire Partnership NHS Trust,27/03/20,NURSE - BAND 5 - AGENCY,City Planned Care - West,HCL NURSING,HNSI0000330,9676.01
Department of Health,Leicestershire Partnership NHS Trust,27/03/20,Nurse - Band 6 -Agency,City West CMHT MHSOP,HCL NURSING,HNSI0000330,3162.20
Department of Health,Leicestershire Partnership NHS Trust,27/03/20,NURSE - BAND 2 - AGENCY,Clarendon Ward,HCL NURSING,HNSI0000330,223.60
Department of Health,Leicestershire Partnership NHS Trust,27/03/20,NURSE - BAND 5 - AGENCY,Clarendon Ward,HCL NURSING,HNSI0000330,2354.72
Department of Health,Leicestershire Partnership NHS Trust,27/03/20,NURSE - BAND 5 - AGENCY,Coalville Snibston Ward,HCL NURSING,HNSI0000330,514.90
Department of Health,Leicestershire Partnership NHS Trust,27/03/20,NURSE - BAND 2 - AGENCY,Coalville Ward 2,HCL NURSING,HNSI0000330,446.01
Department of Health,Leicestershire Partnership NHS Trust,27/03/20,NURSE - BAND 5 - AGENCY,Coalville Ward 2,HCL NURSING,HNSI0000330,1447.15
Department of Health,Leicestershire Partnership NHS Trust,27/03/20,NURSE - BAND 5 - AGENCY,Coleman Ward,HCL NURSING,HNSI0000330,469.70
Department of Health,Leicestershire Partnership NHS Trust,27/03/20,NURSE - BAND 2 - AGENCY,Dalgliesh Ward,HCL NURSING,HNSI0000330,466.91
Department of Health,Leicestershire Partnership NHS Trust,27/03/20,NURSE - BAND 5 - AGENCY,Dalgliesh Ward,HCL NURSING,HNSI0000330,908.25
Department of Health,Leicestershire Partnership NHS Trust,27/03/20,NURSE - BAND 5 - AGENCY,"East Planned Care - Oadby,Wigston & Harborough",HCL NURSING,HNSI0000330,7109.78
Department of Health,Leicestershire Partnership NHS Trust,27/03/20,NURSE - BAND 5 - AGENCY,Fielding Palmer Nursing,HCL NURSING,HNSI0000330,2696.50
Department of Health,Leicestershire Partnership NHS Trust,27/03/20,NURSE - BAND 2 - AGENCY,Gwendolen Ward,HCL NURSING,HNSI0000330,1130.73
Department of Health,Leicestershire Partnership NHS Trust,27/03/20,NURSE - BAND 5 - AGENCY,Gwendolen Ward,HCL NURSING,HNSI0000330,499.18
Department of Health,Leicestershire Partnership NHS Trust,27/03/20,NURSE - BAND 2 - AGENCY,H&B Comm Hosp East Ward,HCL NURSING,HNSI0000330,494.92
Department of Health,Leicestershire Partnership NHS Trust,27/03/20,NURSE - BAND 5 - AGENCY,H&B Comm Hosp East Ward,HCL NURSING,HNSI0000330,1373.31
Department of Health,Leicestershire Partnership NHS Trust,27/03/20,NURSE - BAND 2 - AGENCY,H&B Comm Hosp North Ward,HCL NURSING,HNSI0000330,215.96
Department of Health,Leicestershire Partnership NHS Trust,27/03/20,NURSE - BAND 5 - AGENCY,H&B Comm Hosp North Ward,HCL NURSING,HNSI0000330,449.57
Department of Health,Leicestershire Partnership NHS Trust,27/03/20,NURSE - BAND 2 - AGENCY,Kirby Ward,HCL NURSING,HNSI0000330,1101.18
Department of Health,Leicestershire Partnership NHS Trust,27/03/20,NURSE - BAND 5 - AGENCY,Kirby Ward,HCL NURSING,HNSI0000330,302.58
Department of Health,Leicestershire Partnership NHS Trust,27/03/20,NURSE - BAND 5 - AGENCY,Lough Swithland Ward,HCL NURSING,HNSI0000330,514.90
Department of Health,Leicestershire Partnership NHS Trust,27/03/20,NURSE - BAND 5 - AGENCY,Rutland Ward Nursing,HCL NURSING,HNSI0000330,2700.82
Department of Health,Leicestershire Partnership NHS Trust,27/03/20,NURSE - BAND 5 - AGENCY,St Lukes Ward 3,HCL NURSING,HNSI0000330,3928.98
Department of Health,Leicestershire Partnership NHS Trust,27/03/20,NURSE - BAND 2 - AGENCY,Welford Ward,HCL NURSING,HNSI0000330,1561.90
Department of Health,Leicestershire Partnership NHS Trust,27/03/20,NURSE - BAND 5 - AGENCY,Welford Ward,HCL NURSING,HNSI0000330,628.82
Department of Health,Leicestershire Partnership NHS Trust,27/03/20,NURSE - BAND 5 - AGENCY,West Planned Care  - Charnwood Hub,HCL NURSING,HNSI0000330,13.26
Department of Health,Leicestershire Partnership NHS Trust,30/03/20,External Consultancy Fees,Finance Department,SEYMOUR JOHN PUB SERV LTD,P1218,27595.20
Department of Health,Leicestershire Partnership NHS Trust,30/03/20,WIP Project Not in BS - Information Technology,Work in Progress,VERSION 1,INVSOL005589,73440.00
